[Event "*** Titled Tuesday Blitz"]
[Site "Chess.com"]
[Date "2020.11.24"]
[Round "9"]
[White "bylavochka"]
[Black "northridgehawk"]
[Result "1-0"]
[WhiteElo "2165"]
[BlackElo "2264"]
[TimeControl "180+1"]
[EndTime "12:01:18 PST"]
[Termination "bylavochka won by checkmate"]

1. e4 {[%clk 0:03:00.9]} 1... e5 {[%clk 0:02:56.5]} 2. Nf3 {[%clk 0:02:57.5]}
2... Nc6 {[%clk 0:02:50]} 3. Bc4 {[%clk 0:02:57.2]} 3... Nf6 {[%clk 0:02:50]} 4.
d3 {[%clk 0:02:48.4]} 4... Bc5 {[%clk 0:02:43]} 5. O-O {[%clk 0:02:47.5]} 5...
d6 {[%clk 0:02:39.1]} 6. h3 {[%clk 0:02:47.5]} 6... h6 {[%clk 0:02:33.2]} 7. c3
{[%clk 0:02:45.7]} 7... a6 {[%clk 0:02:33.2]} 8. b4 {[%clk 0:02:45.8]} 8... Ba7
{[%clk 0:02:33.5]} 9. a4 {[%clk 0:02:43.8]} 9... g5 {[%clk 0:02:33.5]} 10. b5
{[%clk 0:02:40.5]} 10... axb5 {[%clk 0:02:30.9]} 11. axb5 {[%clk 0:02:40.4]}
11... Ne7 {[%clk 0:02:30]} 12. Be3 {[%clk 0:02:29.4]} 12... Bxe3 {[%clk
0:02:25.7]} 13. Rxa8 {[%clk 0:02:28.7]} 13... Bb6 {[%clk 0:02:25.6]} 14. Qb3
{[%clk 0:02:20]} 14... O-O {[%clk 0:02:14.5]} 15. Nbd2 {[%clk 0:02:12.9]} 15...
Ng6 {[%clk 0:02:12.7]} 16. d4 {[%clk 0:02:03.1]} 16... Nh5 {[%clk 0:01:57.3]}
17. Rd1 {[%clk 0:01:29]} 17... Nhf4 {[%clk 0:01:55]} 18. Nf1 {[%clk 0:01:27.6]}
18... h5 {[%clk 0:01:40.6]} 19. Ng3 {[%clk 0:01:23.5]} 19... g4 {[%clk
0:01:38.5]} 20. hxg4 {[%clk 0:01:06.6]} 20... Bxg4 {[%clk 0:01:39.4]} 21. Rxd8
{[%clk 0:01:05.5]} 21... Rxd8 {[%clk 0:01:28.8]} 22. Bxf7+ {[%clk 0:01:04.6]}
22... Kg7 {[%clk 0:01:27.6]} 23. Nf5+ {[%clk 0:01:03.6]} 23... Kf6 {[%clk
0:01:27.7]} 24. dxe5+ {[%clk 0:00:54.9]} 24... Nxe5 {[%clk 0:01:16.1]} 25. Nxe5
{[%clk 0:00:52.4]} 25... Bxd1 {[%clk 0:01:15.5]} 26. Qxd1 {[%clk 0:00:50.4]}
26... Kxe5 {[%clk 0:01:15.1]} 27. g3 {[%clk 0:00:46.2]} 27... Nh3+ {[%clk
0:01:11.2]} 28. Kg2 {[%clk 0:00:45.8]} 28... Nxf2 {[%clk 0:01:09.7]} 29. Qd5+
{[%clk 0:00:45.4]} 29... Kf6 {[%clk 0:01:09.3]} 30. Qe6+ {[%clk 0:00:45.5]}
30... Kg5 {[%clk 0:01:07.6]} 31. Qg6# {[%clk 0:00:45.4]} 1-0

[Event "*** Titled Tuesday Blitz"]
[Site "Chess.com"]
[Date "2020.11.24"]
[Round "9"]
[White "zala02"]
[Black "No_t_ime_to_die"]
[Result "0-1"]
[WhiteElo "2168"]
[BlackElo "2430"]
[TimeControl "180+1"]
[EndTime "12:01:20 PST"]
[Termination "No_t_ime_to_die won by resignation"]

1. d4 {[%clk 0:03:00.9]} 1... Nf6 {[%clk 0:02:57.3]} 2. c4 {[%clk 0:03:00.8]}
2... c5 {[%clk 0:02:52.7]} 3. d5 {[%clk 0:02:59.4]} 3... b5 {[%clk 0:02:53]} 4.
cxb5 {[%clk 0:02:58.5]} 4... a6 {[%clk 0:02:53.2]} 5. bxa6 {[%clk 0:02:58.8]}
5... g6 {[%clk 0:02:54.1]} 6. Nc3 {[%clk 0:02:56.3]} 6... Bg7 {[%clk 0:02:47.7]}
7. e4 {[%clk 0:02:56.3]} 7... O-O {[%clk 0:02:47.7]} 8. Nf3 {[%clk 0:02:55.4]}
8... Qa5 {[%clk 0:02:43.3]} 9. Bd2 {[%clk 0:02:48.6]} 9... Bxa6 {[%clk
0:02:41.9]} 10. Be2 {[%clk 0:02:41.5]} 10... Bxe2 {[%clk 0:02:36.1]} 11. Qxe2
{[%clk 0:02:41.8]} 11... Qa6 {[%clk 0:02:37]} 12. Qxa6 {[%clk 0:02:17.1]} 12...
Nxa6 {[%clk 0:02:37.9]} 13. e5 {[%clk 0:01:53.9]} 13... Ng4 {[%clk 0:02:30.8]}
14. Bf4 {[%clk 0:01:54.4]} 14... Nb4 {[%clk 0:02:30.1]} 15. Ke2 {[%clk
0:00:52.5]} 15... d6 {[%clk 0:02:29.3]} 16. exd6 {[%clk 0:00:48.9]} 16... exd6
{[%clk 0:02:30.2]} 17. h3 {[%clk 0:00:32.7]} 17... Rfe8+ {[%clk 0:02:24.3]} 18.
Kf1 {[%clk 0:00:29.4]} 18... Nd3 {[%clk 0:02:19.1]} 19. Bxd6 {[%clk 0:00:19.4]}
19... Ngxf2 {[%clk 0:02:18.6]} 20. Rh2 {[%clk 0:00:19.5]} 20... Bxc3 {[%clk
0:02:17.1]} 21. bxc3 {[%clk 0:00:19.3]} 21... Ne4 {[%clk 0:02:18]} 22. Bc7
{[%clk 0:00:11.8]} 22... Nxc3 {[%clk 0:02:14.5]} 23. g4 {[%clk 0:00:10.5]} 23...
Nxd5 {[%clk 0:02:12.4]} 24. Rd2 {[%clk 0:00:09.6]} 24... Nxc7 {[%clk 0:02:04.6]}
25. Rxd3 {[%clk 0:00:09.5]} 25... Nb5 {[%clk 0:02:05]} 26. Rd5 {[%clk
0:00:09.1]} 26... Rec8 {[%clk 0:02:03.2]} 27. Rc1 {[%clk 0:00:08.5]} 27... Rxa2
{[%clk 0:01:59]} 28. Rdxc5 {[%clk 0:00:08.5]} 28... Rxc5 {[%clk 0:01:59.6]} 29.
Rxc5 {[%clk 0:00:09.4]} 29... Nd6 {[%clk 0:01:59.9]} 30. Rd5 {[%clk 0:00:08.9]}
30... Ne4 {[%clk 0:01:59.7]} 31. Ne5 {[%clk 0:00:08.3]} 31... Ng3+ {[%clk
0:01:57.6]} 32. Kg1 {[%clk 0:00:07.4]} 32... f6 {[%clk 0:01:57.4]} 33. Nd7
{[%clk 0:00:07]} 33... Kf7 {[%clk 0:01:56.8]} 34. Rb5 {[%clk 0:00:06.8]} 34...
Ne2+ {[%clk 0:01:54.2]} 35. Kf2 {[%clk 0:00:06.4]} 35... Nd4+ {[%clk 0:01:54.5]}
0-1

[Event "*** Titled Tuesday Blitz"]
[Site "Chess.com"]
[Date "2020.11.24"]
[Round "9"]
[White "DarZay"]
[Black "anon481216"]
[Result "0-1"]
[WhiteElo "2122"]
[BlackElo "2402"]
[TimeControl "180+1"]
[EndTime "12:01:20 PST"]
[Termination "anon481216 won by resignation"]

1. e4 {[%clk 0:01:44.6]} 1... c5 {[%clk 0:02:58.3]} 2. Nf3 {[%clk 0:01:44.3]}
2... e6 {[%clk 0:02:58.3]} 3. d4 {[%clk 0:01:44.6]} 3... cxd4 {[%clk 0:02:58.7]}
4. Nxd4 {[%clk 0:01:45]} 4... Nc6 {[%clk 0:02:59.3]} 5. Nc3 {[%clk 0:01:45.1]}
5... Qc7 {[%clk 0:02:59.7]} 6. Nxc6 {[%clk 0:01:44.2]} 6... bxc6 {[%clk
0:02:58.4]} 7. Be3 {[%clk 0:01:45.1]} 7... d5 {[%clk 0:02:56.4]} 8. exd5 {[%clk
0:01:43.5]} 8... cxd5 {[%clk 0:02:55]} 9. Bb5+ {[%clk 0:01:42.7]} 9... Bd7
{[%clk 0:02:54.5]} 10. Bxd7+ {[%clk 0:01:42.7]} 10... Qxd7 {[%clk 0:02:54.6]}
11. O-O {[%clk 0:01:42.6]} 11... Nf6 {[%clk 0:02:54.5]} 12. Re1 {[%clk
0:01:41.8]} 12... Be7 {[%clk 0:02:54.3]} 13. Bd4 {[%clk 0:01:39.1]} 13... O-O
{[%clk 0:02:53.9]} 14. Qf3 {[%clk 0:01:37.1]} 14... Rab8 {[%clk 0:02:47.6]} 15.
Rad1 {[%clk 0:01:35.1]} 15... Rfc8 {[%clk 0:02:38.3]} 16. Be5 {[%clk 0:01:30.1]}
16... Rb7 {[%clk 0:02:28.9]} 17. h3 {[%clk 0:01:23.8]} 17... Qc6 {[%clk
0:02:18.3]} 18. Rd3 {[%clk 0:01:20.2]} 18... h6 {[%clk 0:02:17.2]} 19. a3 {[%clk
0:01:16.1]} 19... Nd7 {[%clk 0:02:11.9]} 20. b4 {[%clk 0:01:12.6]} 20... Nxe5
{[%clk 0:02:10.8]} 21. Rxe5 {[%clk 0:01:12.4]} 21... Bf6 {[%clk 0:02:10.7]} 22.
Ree3 {[%clk 0:01:11.1]} 22... d4 {[%clk 0:02:07.9]} 23. Ne4 {[%clk 0:00:55.9]}
23... dxe3 {[%clk 0:02:07.3]} 24. Nxf6+ {[%clk 0:00:55.7]} 24... gxf6 {[%clk
0:02:07.1]} 25. Rd8+ {[%clk 0:00:50.9]} 25... Kh7 {[%clk 0:01:52.1]} 26. Qxf6
{[%clk 0:00:44.8]} 26... Rxd8 {[%clk 0:01:49.7]} 27. Qxd8 {[%clk 0:00:44.8]}
27... exf2+ {[%clk 0:01:40.7]} 28. Kxf2 {[%clk 0:00:42.4]} 28... Qxc2+ {[%clk
0:01:40.2]} 29. Kg1 {[%clk 0:00:40.6]} 29... Qc1+ {[%clk 0:01:36.4]} 30. Kh2
{[%clk 0:00:39.7]} 30... Qf4+ {[%clk 0:01:36]} 31. Kg1 {[%clk 0:00:39.6]} 31...
Rc7 {[%clk 0:01:35.7]} 32. Qd3+ {[%clk 0:00:38.6]} 32... f5 {[%clk 0:01:35]} 33.
g3 {[%clk 0:00:32.4]} 33... Rc1+ {[%clk 0:01:31.6]} 34. Kg2 {[%clk 0:00:32.5]}
34... Qe4+ {[%clk 0:01:31.5]} 35. Qxe4 {[%clk 0:00:31.7]} 35... fxe4 {[%clk
0:01:31.7]} 0-1

[Event "*** Titled Tuesday Blitz"]
[Site "Chess.com"]
[Date "2020.11.24"]
[Round "9"]
[White "BillCoe"]
[Black "Mikasinski"]
[Result "0-1"]
[WhiteElo "2085"]
[BlackElo "2330"]
[TimeControl "180+1"]
[EndTime "12:01:22 PST"]
[Termination "Mikasinski won by resignation"]

1. e4 {[%clk 0:02:58]} 1... c5 {[%clk 0:03:00.2]} 2. Nf3 {[%clk 0:02:55.3]} 2...
d6 {[%clk 0:03:00.8]} 3. d4 {[%clk 0:02:55.6]} 3... cxd4 {[%clk 0:03:01.5]} 4.
Nxd4 {[%clk 0:02:55.9]} 4... Nf6 {[%clk 0:03:02.2]} 5. Nc3 {[%clk 0:02:56.4]}
5... g6 {[%clk 0:03:03]} 6. f3 {[%clk 0:02:56.1]} 6... Bg7 {[%clk 0:03:03.1]} 7.
Be3 {[%clk 0:02:56]} 7... O-O {[%clk 0:03:03.7]} 8. Qd2 {[%clk 0:02:56.2]} 8...
Nc6 {[%clk 0:03:04.4]} 9. O-O-O {[%clk 0:02:56.4]} 9... Qd7 {[%clk 0:03:04.5]}
10. g4 {[%clk 0:02:55.2]} 10... Ne5 {[%clk 0:03:03.2]} 11. h4 {[%clk 0:02:52.8]}
11... h5 {[%clk 0:03:02.8]} 12. g5 {[%clk 0:02:52]} 12... Ne8 {[%clk 0:03:03.1]}
13. f4 {[%clk 0:02:27.5]} 13... Nc6 {[%clk 0:02:59.2]} 14. Bh3 {[%clk 0:02:19]}
14... Qd8 {[%clk 0:02:59.1]} 15. f5 {[%clk 0:02:15]} 15... Ne5 {[%clk
0:02:57.7]} 16. fxg6 {[%clk 0:02:06.6]} 16... fxg6 {[%clk 0:02:57.4]} 17. Ne6
{[%clk 0:02:03.2]} 17... Bxe6 {[%clk 0:02:56.5]} 18. Bxe6+ {[%clk 0:02:03.4]}
18... Kh7 {[%clk 0:02:57.2]} 19. Rdf1 {[%clk 0:01:48.1]} 19... Nc7 {[%clk
0:02:56.7]} 20. Bb3 {[%clk 0:01:39.5]} 20... Qd7 {[%clk 0:02:56.7]} 21. Nd5
{[%clk 0:01:34.5]} 21... Ne6 {[%clk 0:02:28.2]} 22. Kb1 {[%clk 0:01:23.7]} 22...
Ng4 {[%clk 0:02:19.2]} 23. Nf4 {[%clk 0:01:14.4]} 23... Nxf4 {[%clk 0:02:15.2]}
24. Bxf4 {[%clk 0:01:12.9]} 24... Qc6 {[%clk 0:02:09.8]} 25. Bd5 {[%clk
0:01:08]} 25... Qb6 {[%clk 0:02:10.1]} 26. c3 {[%clk 0:01:04.4]} 26... Rac8
{[%clk 0:01:57.6]} 27. Be6 {[%clk 0:00:45.2]} 27... Rxc3 {[%clk 0:01:57]} 28.
Bxg4 {[%clk 0:00:40.8]} 28... hxg4 {[%clk 0:01:55.2]} 29. h5 {[%clk 0:00:38.8]}
29... Rf3 {[%clk 0:01:51.1]} 30. hxg6+ {[%clk 0:00:30.4]} 30... Kxg6 {[%clk
0:01:51]} 31. Rxf3 {[%clk 0:00:30.5]} 31... gxf3 {[%clk 0:01:50]} 32. Qh2 {[%clk
0:00:26.8]} 32... Qxb2+ {[%clk 0:01:48.5]} 33. Qxb2 {[%clk 0:00:25.6]} 33...
Bxb2 {[%clk 0:01:49.2]} 34. Kxb2 {[%clk 0:00:23.6]} 34... Rxf4 {[%clk
0:01:48.9]} 35. Rf1 {[%clk 0:00:17.7]} 35... Kxg5 {[%clk 0:01:47.7]} 36. Kc3
{[%clk 0:00:18.6]} 36... Kg4 {[%clk 0:01:48]} 37. Kd3 {[%clk 0:00:19.1]} 37...
Kg3 {[%clk 0:01:48.5]} 38. Ke3 {[%clk 0:00:18.3]} 38... f2 {[%clk 0:01:48]} 0-1

[Event "*** Titled Tuesday Blitz"]
[Site "Chess.com"]
[Date "2020.11.24"]
[Round "9"]
[White "tan275"]
[Black "TheKingDoctor"]
[Result "1-0"]
[WhiteElo "2197"]
[BlackElo "2087"]
[TimeControl "180+1"]
[EndTime "12:01:32 PST"]
[Termination "tan275 won by resignation"]

1. d4 {[%clk 0:03:00.9]} 1... Nf6 {[%clk 0:02:59]} 2. c4 {[%clk 0:03:00.8]} 2...
g6 {[%clk 0:02:59]} 3. g3 {[%clk 0:03:00.8]} 3... Bg7 {[%clk 0:02:57.2]} 4. Bg2
{[%clk 0:03:01.3]} 4... O-O {[%clk 0:02:58.1]} 5. Nf3 {[%clk 0:03:01.2]} 5... c6
{[%clk 0:02:56.4]} 6. O-O {[%clk 0:02:56.7]} 6... d6 {[%clk 0:02:56.8]} 7. Nc3
{[%clk 0:02:54.8]} 7... Bf5 {[%clk 0:02:57.3]} 8. Ne1 {[%clk 0:02:54.3]} 8... d5
{[%clk 0:02:45.9]} 9. cxd5 {[%clk 0:02:48.3]} 9... cxd5 {[%clk 0:02:46.8]} 10.
Qb3 {[%clk 0:02:48.1]} 10... Nc6 {[%clk 0:02:37.4]} 11. Qxb7 {[%clk 0:02:33.1]}
11... Nxd4 {[%clk 0:02:23.4]} 12. Be3 {[%clk 0:02:02.4]} 12... Rb8 {[%clk
0:01:57.9]} 13. Qxa7 {[%clk 0:01:55.1]} 13... Nc2 {[%clk 0:01:47.6]} 14. Nxc2
{[%clk 0:01:53.9]} 14... Bxc2 {[%clk 0:01:48.5]} 15. Rac1 {[%clk 0:01:49.1]}
15... Rxb2 {[%clk 0:01:39.9]} 16. Qa3 {[%clk 0:01:44.3]} 16... Qb8 {[%clk
0:01:36.7]} 17. Nxd5 {[%clk 0:01:32.2]} 17... Nxd5 {[%clk 0:01:29.4]} 18. Bxd5
{[%clk 0:01:32.5]} 18... Bf5 {[%clk 0:01:23]} 19. Qxe7 {[%clk 0:01:24.1]} 19...
Rxe2 {[%clk 0:01:13.5]} 20. Rc7 {[%clk 0:01:09.6]} 20... Qe8 {[%clk 0:00:21.3]}
21. Qxe8 {[%clk 0:01:03.7]} 21... Rxe8 {[%clk 0:00:18.4]} 22. Bxf7+ {[%clk
0:01:03.3]} 22... Kf8 {[%clk 0:00:19.1]} 23. Bc5+ {[%clk 0:01:00.3]} 1-0

[Event "*** Titled Tuesday Blitz"]
[Site "Chess.com"]
[Date "2020.11.24"]
[Round "9"]
[White "Kislov_Oleg"]
[Black "redbaron8888"]
[Result "1-0"]
[WhiteElo "2396"]
[BlackElo "2519"]
[TimeControl "180+1"]
[EndTime "12:01:51 PST"]
[Termination "Kislov_Oleg won by resignation"]

1. e4 {[%clk 0:03:00.9]} 1... e6 {[%clk 0:03:00.9]} 2. d4 {[%clk 0:03:00.6]}
2... d5 {[%clk 0:03:01.5]} 3. Nc3 {[%clk 0:03:00.4]} 3... Bb4 {[%clk 0:03:00.9]}
4. exd5 {[%clk 0:03:00.2]} 4... exd5 {[%clk 0:03:00.5]} 5. Bd3 {[%clk
0:03:00.1]} 5... Nc6 {[%clk 0:03:00.2]} 6. Ne2 {[%clk 0:02:59.9]} 6... Nge7
{[%clk 0:02:58.6]} 7. O-O {[%clk 0:02:56.2]} 7... O-O {[%clk 0:02:58.6]} 8. Bg5
{[%clk 0:02:43.8]} 8... f6 {[%clk 0:02:52.9]} 9. Bh4 {[%clk 0:02:42.4]} 9... Bf5
{[%clk 0:02:47.4]} 10. Bg3 {[%clk 0:02:35.2]} 10... Bd6 {[%clk 0:02:42.2]} 11.
Bxf5 {[%clk 0:02:29.3]} 11... Nxf5 {[%clk 0:02:40.2]} 12. Qd3 {[%clk 0:02:29.9]}
12... Nxg3 {[%clk 0:02:36.3]} 13. fxg3 {[%clk 0:02:23.3]} 13... Ne7 {[%clk
0:02:29.7]} 14. Nf4 {[%clk 0:02:22.1]} 14... Bxf4 {[%clk 0:02:23.9]} 15. gxf4
{[%clk 0:02:21.2]} 15... Qd7 {[%clk 0:02:20.5]} 16. Rae1 {[%clk 0:02:17.2]}
16... Rfe8 {[%clk 0:02:19.8]} 17. Re2 {[%clk 0:02:02.9]} 17... Nf5 {[%clk
0:02:18.8]} 18. Rfe1 {[%clk 0:01:56.7]} 18... Rxe2 {[%clk 0:02:18.3]} 19. Rxe2
{[%clk 0:01:56.3]} 19... c6 {[%clk 0:02:16.7]} 20. g4 {[%clk 0:01:16.5]} 20...
Nd6 {[%clk 0:02:14.3]} 21. f5 {[%clk 0:01:16.2]} 21... h5 {[%clk 0:02:06.9]} 22.
h3 {[%clk 0:01:11.2]} 22... hxg4 {[%clk 0:02:04.8]} 23. hxg4 {[%clk 0:01:11.5]}
23... Re8 {[%clk 0:02:04.6]} 24. Kg2 {[%clk 0:01:07.8]} 24... Kf8 {[%clk
0:01:59.2]} 25. Qh3 {[%clk 0:00:46.6]} 25... Rxe2+ {[%clk 0:01:53.7]} 26. Nxe2
{[%clk 0:00:45.5]} 26... Nf7 {[%clk 0:01:46.9]} 27. Nf4 {[%clk 0:00:42.9]} 27...
Ng5 {[%clk 0:01:43.5]} 28. Qh8+ {[%clk 0:00:41.1]} 28... Kf7 {[%clk 0:01:42.3]}
29. Nh5 {[%clk 0:00:32.6]} 29... Ke7 {[%clk 0:01:16.6]} 30. Qxg7+ {[%clk
0:00:31.6]} 30... Nf7 {[%clk 0:01:13.6]} 31. Qxf6+ {[%clk 0:00:26.4]} 31... Kf8
{[%clk 0:01:13.8]} 32. g5 {[%clk 0:00:16.6]} 32... Qe8 {[%clk 0:01:11.2]} 33.
Qg7+ {[%clk 0:00:12.6]} 33... Ke7 {[%clk 0:01:11.1]} 34. g6 {[%clk 0:00:11.6]}
1-0

[Event "*** Titled Tuesday Blitz"]
[Site "Chess.com"]
[Date "2020.11.24"]
[Round "9"]
[White "SchieberSpieler"]
[Black "PlotnikovPavel"]
[Result "1-0"]
[WhiteElo "2353"]
[BlackElo "2459"]
[TimeControl "180+1"]
[EndTime "12:01:53 PST"]
[Termination "SchieberSpieler won by checkmate"]

1. Nf3 {[%clk 0:03:00.9]} 1... d6 {[%clk 0:02:55]} 2. d4 {[%clk 0:03:00.9]} 2...
Nf6 {[%clk 0:02:53.8]} 3. c4 {[%clk 0:03:01.3]} 3... g6 {[%clk 0:02:53.7]} 4. g3
{[%clk 0:03:01.8]} 4... Bg7 {[%clk 0:02:53.8]} 5. Bg2 {[%clk 0:03:02.7]} 5...
O-O {[%clk 0:02:54.3]} 6. O-O {[%clk 0:03:03.3]} 6... Nbd7 {[%clk 0:02:54.8]} 7.
Qc2 {[%clk 0:03:01.5]} 7... e5 {[%clk 0:02:54.7]} 8. Rd1 {[%clk 0:03:02.2]} 8...
Qe7 {[%clk 0:02:53.4]} 9. Nc3 {[%clk 0:03:02.4]} 9... c6 {[%clk 0:02:53.5]} 10.
e4 {[%clk 0:03:02.8]} 10... h6 {[%clk 0:02:53.2]} 11. h3 {[%clk 0:03:02.2]}
11... b6 {[%clk 0:02:53.4]} 12. Be3 {[%clk 0:03:00.5]} 12... Bb7 {[%clk
0:02:53.5]} 13. d5 {[%clk 0:02:58.7]} 13... cxd5 {[%clk 0:02:52.6]} 14. cxd5
{[%clk 0:02:57]} 14... Rac8 {[%clk 0:02:52.2]} 15. Nd2 {[%clk 0:02:52.5]} 15...
Nc5 {[%clk 0:02:50.8]} 16. b4 {[%clk 0:02:42.8]} 16... Na6 {[%clk 0:02:46]} 17.
Qb3 {[%clk 0:02:38.9]} 17... Nc7 {[%clk 0:02:40.7]} 18. a4 {[%clk 0:02:36.1]}
18... Rfd8 {[%clk 0:02:37.7]} 19. Nc4 {[%clk 0:02:12.4]} 19... Ba6 {[%clk
0:02:33.3]} 20. b5 {[%clk 0:02:12.1]} 20... Bb7 {[%clk 0:02:33.3]} 21. a5 {[%clk
0:02:12.4]} 21... bxa5 {[%clk 0:02:30.4]} 22. Nxa5 {[%clk 0:02:13.3]} 22... Ba8
{[%clk 0:02:29.7]} 23. Nc6 {[%clk 0:01:59.8]} 23... Bxc6 {[%clk 0:02:28.2]} 24.
dxc6 {[%clk 0:02:00.1]} 24... a6 {[%clk 0:02:19.6]} 25. b6 {[%clk 0:01:50.6]}
25... Ne6 {[%clk 0:02:17.2]} 26. c7 {[%clk 0:01:39.2]} 26... Rf8 {[%clk
0:02:17.2]} 27. b7 {[%clk 0:01:28.6]} 27... Rxc7 {[%clk 0:02:15.1]} 28. b8=Q
{[%clk 0:01:29.1]} 28... Rxb8 {[%clk 0:02:12.4]} 29. Qxb8+ {[%clk 0:01:30]}
29... Kh7 {[%clk 0:02:13.1]} 30. Nd5 {[%clk 0:01:26.9]} 30... Nxd5 {[%clk
0:02:12.7]} 31. exd5 {[%clk 0:01:27.8]} 31... Nd4 {[%clk 0:02:13]} 32. Rxa6
{[%clk 0:01:20.1]} 32... Rc2 {[%clk 0:02:12.3]} 33. Qxd6 {[%clk 0:01:14.5]}
33... Qb7 {[%clk 0:02:11.4]} 34. Qb6 {[%clk 0:01:03.8]} 34... Qc8 {[%clk
0:02:05.7]} 35. Be4 {[%clk 0:00:35.6]} 35... Qxh3 {[%clk 0:02:02.9]} 36. Bxd4
{[%clk 0:00:31.7]} 36... exd4 {[%clk 0:02:02.3]} 37. Bxg6+ {[%clk 0:00:31.8]}
37... fxg6 {[%clk 0:02:02.4]} 38. Qxg6+ {[%clk 0:00:32.1]} 38... Kh8 {[%clk
0:02:03.1]} 39. Qxc2 {[%clk 0:00:28.2]} 39... Bf8 {[%clk 0:01:51.6]} 40. Qg6
{[%clk 0:00:24.7]} 40... Qd7 {[%clk 0:01:48]} 41. Qf6+ {[%clk 0:00:24.2]} 41...
Bg7 {[%clk 0:01:47.6]} 42. Ra8+ {[%clk 0:00:23.1]} 42... Kh7 {[%clk 0:01:46.9]}
43. Qe6 {[%clk 0:00:23.7]} 43... Qb7 {[%clk 0:01:45.6]} 44. Re8 {[%clk
0:00:23.5]} 44... h5 {[%clk 0:01:36.9]} 45. Qe4+ {[%clk 0:00:21.7]} 45... Kh6
{[%clk 0:01:36]} 46. Re6+ {[%clk 0:00:21.8]} 46... Kg5 {[%clk 0:01:36.4]} 47.
Rg6# {[%clk 0:00:21.6]} 1-0

[Event "*** Titled Tuesday Blitz"]
[Site "Chess.com"]
[Date "2020.11.24"]
[Round "9"]
[White "TC2304"]
[Black "ajedrezhoy"]
[Result "0-1"]
[WhiteElo "2317"]
[BlackElo "2230"]
[TimeControl "180+1"]
[EndTime "12:01:53 PST"]
[Termination "ajedrezhoy won by resignation"]

1. d4 {[%clk 0:03:00.9]} 1... c5 {[%clk 0:02:53.1]} 2. d5 {[%clk 0:03:00.1]}
2... Nf6 {[%clk 0:02:53]} 3. Nc3 {[%clk 0:03:00.1]} 3... g6 {[%clk 0:02:52.5]}
4. e4 {[%clk 0:03:00.2]} 4... d6 {[%clk 0:02:51.5]} 5. Nf3 {[%clk 0:02:59.5]}
5... Bg7 {[%clk 0:02:51.4]} 6. Be2 {[%clk 0:02:59.8]} 6... O-O {[%clk
0:02:51.1]} 7. O-O {[%clk 0:03:00.2]} 7... Na6 {[%clk 0:02:51]} 8. Re1 {[%clk
0:02:59.2]} 8... Nc7 {[%clk 0:02:50.8]} 9. h3 {[%clk 0:02:57.5]} 9... a6 {[%clk
0:02:50.9]} 10. a4 {[%clk 0:02:57.2]} 10... b6 {[%clk 0:02:50.7]} 11. Bf4 {[%clk
0:02:53.1]} 11... Rb8 {[%clk 0:02:50.1]} 12. Bh2 {[%clk 0:02:46.2]} 12... b5
{[%clk 0:02:49.3]} 13. axb5 {[%clk 0:02:41.2]} 13... axb5 {[%clk 0:02:49.1]} 14.
Bf1 {[%clk 0:02:38.5]} 14... b4 {[%clk 0:02:48.6]} 15. Nb1 {[%clk 0:02:37.5]}
15... Nd7 {[%clk 0:02:33.9]} 16. e5 {[%clk 0:02:18.9]} 16... Nxe5 {[%clk
0:02:30.6]} 17. Nxe5 {[%clk 0:02:18.1]} 17... Bxe5 {[%clk 0:02:23.9]} 18. Bxe5
{[%clk 0:02:12.3]} 18... dxe5 {[%clk 0:02:23.3]} 19. Rxe5 {[%clk 0:02:04.8]}
19... Qd6 {[%clk 0:02:13.8]} 20. Re1 {[%clk 0:01:49.3]} 20... Nxd5 {[%clk
0:02:06.2]} 21. Nd2 {[%clk 0:01:48.4]} 21... Be6 {[%clk 0:02:01.3]} 22. Ne4
{[%clk 0:01:45.7]} 22... Qc6 {[%clk 0:01:43.8]} 23. Ng5 {[%clk 0:01:34.8]} 23...
Nc7 {[%clk 0:01:38.9]} 24. Nxe6 {[%clk 0:01:29.3]} 24... Nxe6 {[%clk 0:01:37.9]}
25. Bc4 {[%clk 0:01:25.7]} 25... Rbd8 {[%clk 0:01:12.3]} 26. Qc1 {[%clk
0:01:05.6]} 26... Rd6 {[%clk 0:01:08.5]} 27. Ra6 {[%clk 0:01:02.8]} 27... Qc7
{[%clk 0:01:02.3]} 28. Rxd6 {[%clk 0:01:00.6]} 28... Qxd6 {[%clk 0:01:01.9]} 29.
Bxe6 {[%clk 0:01:00.2]} 29... fxe6 {[%clk 0:01:02]} 30. Qe3 {[%clk 0:00:56.6]}
30... Rf6 {[%clk 0:01:01]} 31. Re2 {[%clk 0:00:51.2]} 31... Kf7 {[%clk
0:00:59.9]} 32. Qh6 {[%clk 0:00:44.4]} 32... Qd1+ {[%clk 0:00:58.4]} 33. Kh2
{[%clk 0:00:40.5]} 33... Qxe2 {[%clk 0:00:58.3]} 34. Qxh7+ {[%clk 0:00:36.3]}
34... Ke8 {[%clk 0:00:58]} 35. Qg8+ {[%clk 0:00:33.5]} 35... Kd7 {[%clk
0:00:58]} 0-1

[Event "*** Titled Tuesday Blitz"]
[Site "Chess.com"]
[Date "2020.11.24"]
[Round "9"]
[White "Road2GM3000"]
[Black "Matols"]
[Result "1-0"]
[WhiteElo "2032"]
[BlackElo "2216"]
[TimeControl "180+1"]
[EndTime "12:01:56 PST"]
[Termination "Road2GM3000 won on time"]

1. d4 {[%clk 0:03:00.9]} 1... Nf6 {[%clk 0:02:59.3]} 2. c4 {[%clk 0:03:01.6]}
2... e6 {[%clk 0:02:59.3]} 3. Nc3 {[%clk 0:03:02.2]} 3... Bb4 {[%clk 0:02:59.2]}
4. Nf3 {[%clk 0:03:02.9]} 4... O-O {[%clk 0:02:53.2]} 5. Bg5 {[%clk 0:03:03.1]}
5... d5 {[%clk 0:02:49.8]} 6. e3 {[%clk 0:03:01.6]} 6... Nbd7 {[%clk 0:02:46.7]}
7. Qc2 {[%clk 0:03:01.5]} 7... h6 {[%clk 0:02:45.2]} 8. Bh4 {[%clk 0:03:01.5]}
8... c5 {[%clk 0:02:22.1]} 9. a3 {[%clk 0:03:00.8]} 9... Bxc3+ {[%clk
0:02:19.6]} 10. bxc3 {[%clk 0:03:01.7]} 10... b6 {[%clk 0:02:10.5]} 11. cxd5
{[%clk 0:03:00.3]} 11... exd5 {[%clk 0:02:09.8]} 12. Bd3 {[%clk 0:03:00.9]}
12... Re8 {[%clk 0:02:05.3]} 13. O-O {[%clk 0:03:00.9]} 13... Qc7 {[%clk
0:02:04.6]} 14. Bg3 {[%clk 0:03:00.5]} 14... Qc6 {[%clk 0:02:02.5]} 15. Ne5
{[%clk 0:03:00.9]} 15... Nxe5 {[%clk 0:01:59.8]} 16. Bxe5 {[%clk 0:03:01.8]}
16... Ne4 {[%clk 0:01:51.1]} 17. a4 {[%clk 0:03:01]} 17... f6 {[%clk 0:01:42.2]}
18. Bb5 {[%clk 0:02:59.6]} 18... Qe6 {[%clk 0:01:36.6]} 19. Bxe8 {[%clk
0:02:59.8]} 19... fxe5 {[%clk 0:01:30.5]} 20. Bh5 {[%clk 0:02:59.6]} 20... Bb7
{[%clk 0:01:20.1]} 21. Bf3 {[%clk 0:02:59.9]} 21... Rf8 {[%clk 0:01:15.7]} 22.
Bxe4 {[%clk 0:02:58.3]} 22... dxe4 {[%clk 0:01:14.6]} 23. Rab1 {[%clk
0:02:58.9]} 23... exd4 {[%clk 0:01:12.5]} 24. cxd4 {[%clk 0:02:59.5]} 24... cxd4
{[%clk 0:01:12.1]} 25. exd4 {[%clk 0:02:43.6]} 25... Qg4 {[%clk 0:01:08.8]} 26.
Qb3+ {[%clk 0:02:41.8]} 26... Kh8 {[%clk 0:01:07.9]} 27. Qg3 {[%clk 0:02:42.2]}
27... Qd7 {[%clk 0:01:04.8]} 28. Rbc1 {[%clk 0:02:41.2]} 28... Qxd4 {[%clk
0:01:02.8]} 29. Rc7 {[%clk 0:02:40.3]} 29... Bd5 {[%clk 0:01:01.8]} 30. Rd7
{[%clk 0:02:22.6]} 30... Rf6 {[%clk 0:00:35.6]} 31. Qb8+ {[%clk 0:02:16.2]}
31... Kh7 {[%clk 0:00:30.7]} 32. Qd8 {[%clk 0:02:16.4]} 32... Rf5 {[%clk
0:00:26.7]} 33. Qe7 {[%clk 0:01:55.2]} 33... e3 {[%clk 0:00:25.4]} 34. Qxe3
{[%clk 0:01:53.6]} 34... Qg4 {[%clk 0:00:21.2]} 35. Qg3 {[%clk 0:01:50.7]} 35...
Qd4 {[%clk 0:00:17.5]} 36. h4 {[%clk 0:01:37.8]} 36... Qf6 {[%clk 0:00:11.5]}
37. Rd1 {[%clk 0:01:31.6]} 37... Be4 {[%clk 0:00:10]} 38. R7d6 {[%clk
0:01:29.8]} 38... Qb2 {[%clk 0:00:07.4]} 39. Qg6+ {[%clk 0:01:29]} 1-0